Cogmind - Beta 15 @@@ ROGUE MODE // 2025.10.11 @ 18:44:47 Player: NQH Result: Destroyed by S-10 Pest with Light Assault Rifle Performance ------------- Evolutions (1) 500 Regions Visited (3) 600 Robots Destroyed (1) 5 Value Destroyed (34) 34 Prototype IDs (0) 0 Alien Tech Used (0) 0 Bonus (42) 42 TOTAL SCORE: 1181 Bonus ------- Follower Combat Kills 42 Cogmind --------- Core Integrity 0/400 Matter 290/300 Energy 84/100 System Corruption 0% Temperature Cool (-56) Movement Core (50) Location -9/Materials Parts ------- > --- POWER (1) -------- (None) > --- PROPULSION (2) --- (None) > --- UTILITY (4) ------ Cryofiber Web Signal Interpreter Salvage Targeting Computer Propulsion Shielding > --- WEAPON (2) ------- (None) > --- INVENTORY (5) ---- Signal Interpreter Signal Interpreter Signal Interpreter Peak State ------------ > --- POWER ------------ (None) > --- PROPULSION ------- (None) > --- UTILITY ---------- Cryofiber Web Signal Interpreter Salvage Targeting Computer Propulsion Shielding > --- WEAPON ----------- (None) > --- INVENTORY -------- Signal Interpreter Signal Interpreter Signal Interpreter [Rating: 7] Favorites ----------- Power None Propulsion Improved Hover Unit Hover Unit Improved Hover Unit Utility Signal Interpreter Device Cryofiber Web Processor Signal Interpreter Protection Propulsion Shielding Weapon Mining Laser Special Weapon Mining Laser Build | -11 -10 -10 -9 ------- Run | Yrd Mat Min Mat Slots Evolved 2 | . . . 2 Power . | . . . . Propulsion . | . . . . Utility 2 | . . . 2 Weapon . | . . . . Parts Attached 7 | . 1 1 5 Power . | . . . . Engine . | . . . . Core . | . . . . Reactor . | . . . . Propulsion 2 | . . . 2 Treads . | . . . . Leg . | . . . . Wheel . | . . . . Hover 2 | . . . 2 Flight . | . . . . Utility 4 | . 1 . 3 Device 1 | . . . 1 Storage . | . . . . Processor 2 | . 1 . 1 Hackware . | . . . . Protection 1 | . . . 1 Artifact . | . . . . Weapon 1 | . . 1 . Energy Gun . | . . . . Energy Cannon . | . . . . Ballistic Gun . | . . . . Ballistic Cannon . | . . . . Launcher . | . . . . Special Weapon 1 | . . 1 . Impact Weapon . | . . . . Slashing Weapon . | . . . . Piercing Weapon . | . . . . Special Melee Weapon . | . . . . Unidentified Prototypes . | . . . . Parts Lost 3 | . . . 3 Power . | . . . . Propulsion 2 | . . . 2 Utility . | . . . . Weapon 1 | . . . 1 Highest Loss Streak 2 | . . . 2 To Critical Strikes . | . . . . Average Backups 3 | . 1 3 4 Power . | . . . . Propulsion . | . . . . Utility 3 | . 1 3 3 Weapon . | . . . . Tool/Special . | . . . . Unused Backups 3 | . . . 3 Power . | . . . . Propulsion . | . . . . Utility 3 | . . . 3 Weapon . | . . . . Tool/Special . | . . . . Average Slot Usage (%) 19 | . 9 14 27 Hover 2 | . . . 5 Processor 14 | . 9 14 14 Protection 3 | . . . 7 Peak Build Rating 7 | . 1 2 7 Average Rating 2 | . . 1 3 On Entrance . | . . 1 1 Naked Turns 9 | . 9 . . Heaviest Build 2 | . . 1 2 Greatest Support 14 | 3 3 3 14 Greatest Overweight (x) . | . . . . Average Overweight (x) . | . . . . Largest Inventory Capacity 5 | 5 5 5 5 Average Capacity 5 | 5 5 5 5 Most Carried 5 | . 3 5 5 Average Carried 3 | . 1 3 4 Final Capacity 5 | 5 5 5 5 Final Carried 5 | . 3 5 3 Class Distribution -------------------- 100% | Mutant Dominant Class ---------------- Mutant | -10/Mines Mutant | -9/Materials Resources | -11 -10 -10 -9 ----------- Run | Yrd Mat Min Mat Matter Collected 235 | . . 83 152 Remotely . | . . . . Salvage Created 33 | . . 33 . Parts 3 | . . 3 . Haulers Intercepted . | . . . . Recyclers Shooed . | . . . . Parts Field Recycled . | . . . . Retrieved Matter . | . . . . Parts Self-Destructed . | . . . . Prevented . | . . . . Kills | -11 -10 -10 -9 ------- Run | Yrd Mat Min Mat Combat Hostiles Destroyed 1 | . . 1 . Melee 1 | . . 1 . Classes Destroyed 1 | . . 1 . Grunt 1 | . . 1 . Best Kill Streak 1 | . . 1 . Combat Bots Only 1 | . . 1 . Max Kills in Single Turn 1 | . . 1 . Gunslinging . | . . . . Exploded . | . . . . Melee 1 | . . 1 . Uniques/NPCs Destroyed . | . . . . Combat | -11 -10 -10 -9 -------- Run | Yrd Mat Min Mat Hostile Shots Fired 120 | . 17 17 86 Missed 49 | . 4 10 35 Hits 71 | . 13 7 51 Projectile 71 | . 13 7 51 Critical Strikes 1 | . . . 1 Damage Taken 715 | . 101 70 544 Core 571 | . 101 70 400 Absorbed by Shields . | . . . . Redirected to Shielding 23 | . . . 23 Core Remaining (%) 65 | 100 . 31 . Volleys Fired 1 | . . . 1 Largest 1 | . . . 1 Hottest 100 | . . . 100 Shots Fired 1 | . . . 1 Gun . | . . . . Cannon . | . . . . Launcher . | . . . . Special 1 | . . . 1 Kinetic . | . . . . Thermal 1 | . . . 1 Explosive . | . . . . Electromagnetic . | . . . . Robot Hit Streak . | . . . . Robot Miss Streak 1 | . . . 1 Penetration Max . | . . . . Secondary Targets . | . . . . Shots Hit Robots . | . . . . Core Hits 1 | . . 1 . Critical Kills . | . . . . Critical Parts Destroyed . | . . . . Critical Strikes . | . . . . Melee Attacks . | . . . . Impact . | . . . . Slashing . | . . . . Piercing . | . . . . Sneak Attacks . | . . . . Combat Hostiles . | . . . . Follow-up Attacks . | . . . . Damage Inflicted 39 | . . 24 15 Guns . | . . . . Cannons . | . . . . Explosions . | . . . . Melee . | . . . . Ramming 39 | . . 24 15 Kinetic . | . . . . Thermal . | . . . . Explosive . | . . . . Electromagnetic . | . . . . Impact . | . . . . Slashing . | . . . . Piercing . | . . . . Highest Corruption . | . . . . Average Corruption . | . . . . Corruption Purged . | . . . . Corruption Blocked . | . . . . Overload Shots . | . . . . Overflow Damage . | . . . . Projectiles . | . . . . Explosions . | . . . . Melee . | . . . . Knockbacks . | . . . . Impact . | . . . . Kinetic . | . . . . Secondary . | . . . . Self-Inflicted Damage 18 | . . 11 7 Shots . | . . . . Rammed 7 | . . 3 4 Targets Rammed 7 | . . 3 4 Kicked . | . . . . Crushed . | . . . . Highest Temperature 6 | . . . 6 Average Temperature 3 | . . . 3 Received Heat Transfer 147 | . . 9 138 Siege Activations . | . . . . Martial Activations . | . . . . Shielding Activations . | . . . . Robots Disrupted . | . . . . Combat Hostiles . | . . . . Robots Corrupted . | . . . . Combat Hostiles . | . . . . Parts Fried . | . . . . Impact Corruptions . | . . . . Robots Melted . | . . . . Combat Hostiles . | . . . . Parts Melted . | . . . . Heat Transferred . | . . . . Parts Sabotaged . | . . . . Parts Stolen . | . . . . Parts Stripped . | . . . . Power Chain Reactions . | . . . . Alert | -11 -10 -10 -9 ------- Run | Yrd Mat Min Mat Maximum Alert Level . | . . . . Low Security (%) 100 | 100 100 100 100 Level 1 . | . . . . Level 2 . | . . . . Level 3 . | . . . . Level 4 . | . . . . Level 5 . | . . . . High Security . | . . . . Max Security . | . . . . Peak Influence 152 | . . 95 152 Initial 25 | . . . 25 Average 69 | . . 50 102 Influence Increases 338 | . . 115 223 Destroy 0b10 Robot/C 200 | . . 40 160 Destroy Leader 10 | . . . 10 Allied During Kill 7 | . . . 7 Destroy Structure 1 | . . . 1 Lose Combat Pursuer 120 | . . 75 45 Influence Decreases 220 | . . 50 170 Entered New Map 40 | . . . 40 Time Decay 130 | . . 50 80 Lost Part 30 | . . . 30 Lost Ally 20 | . . . 20 Squads Dispatched 3 | . . . 3 Investigation 1 | . . . 1 Extermination . | . . . . Reinforcement 2 | . . . 2 Assault . | . . . . Garrison . | . . . . Intercept . | . . . . Searches Triggered . | . . . . Construction Impeded . | . . . . Haulers Reinforced . | . . . . Active Scanning Responses . | . . . . Cargo Convoy Interrupts . | . . . . Stealth | -11 -10 -10 -9 --------- Run | Yrd Mat Min Mat Distress Signals 1 | . . . 1 Communications Jammed . | . . . . Distress Signals . | . . . . Times Spotted 33 | . 3 6 24 Peak Tracking Total 9 | . 3 4 9 Tactical Retreats 5 | . . 3 2 Traps | -11 -10 -10 -9 ------- Run | Yrd Mat Min Mat Traps Triggered 1 | . . . 1 Indirectly . | . . . . Trap Hack Attempts . | . . . . Triggered . | . . . . Disarmed . | . . . . Reprogrammed . | . . . . Reused . | . . . . Traps Extracted . | . . . . Installed . | . . . . Triggered . | . . . . Machines | -11 -10 -10 -9 ---------- Run | Yrd Mat Min Mat Machines Disabled . | . . . . Max in Single Turn . | . . . . Machines Repaired . | . . . . Machines Dismantled . | . . . . Machines Sabotaged . | . . . . Overloaded Fab Kills . | . . . . Hacking | -11 -10 -10 -9 --------- Run | Yrd Mat Min Mat Machines Accessed . | . . . . Terminals . | . . . . Fabricators . | . . . . Repair Stations . | . . . . Recycling Units . | . . . . Scanalyzers . | . . . . Garrison Access . | . . . . Total Hacks . | . . . . Successful . | . . . . Failed . | . . . . Catastrophic . | . . . . Database Lockouts . | . . . . Manual . | . . . . Terminals . | . . . . Fabricators . | . . . . Repair Stations . | . . . . Recycling Units . | . . . . Scanalyzers . | . . . . Garrison Access . | . . . . Terminal Hacks . | . . . . Fabricator Hacks . | . . . . Repair Station Hacks . | . . . . Recycling Unit Hacks . | . . . . Scanalyzer . | . . . . Garrison Access Hacks . | . . . . Unauthorized Hacks . | . . . . Terminals . | . . . . Fabricators . | . . . . Repair Stations . | . . . . Recycling Units . | . . . . Scanalyzers . | . . . . Garrison Access . | . . . . Data Cores Recovered . | . . . . Used . | . . . . Hacking Detections . | . . . . Full Trace Events . | . . . . Feedback Events . | . . . . Feedback Blocked . | . . . . Robot Schematics Acquired . | . . . . Robots Built . | . . . . Authchips . | . . . . Time . | . . . . Total Robot Build Rating . | . . . . Part Schematics Acquired . | . . . . Parts Built . | . . . . Authchips . | . . . . Time . | . . . . Total Part Build Rating . | . . . . Parts Repaired . | . . . . Time . | . . . . Parts Recycled . | . . . . Recycled Matter . | . . . . Retrieved Matter . | . . . . Retrieved Components . | . . . . Parts Scanalyzed . | . . . . Part Schematics Acquired . | . . . . Parts Damaged . | . . . . Bothacking | -11 -10 -10 -9 ------------ Run | Yrd Mat Min Mat Used RIF Installer . | . . . . Robots Hacked . | . . . . Non-combat . | . . . . Combat . | . . . . Robot Hacks Applied . | . . . . Relay Couplers Released . | . . . . Fabnet Peak Effective % . | . . . . Robots Rewired . | . . . . Allies Hacked . | . . . . Hacks Repelled . | . . . . Allies | -11 -10 -10 -9 -------- Run | Yrd Mat Min Mat Total Allies 1 | . . 1 . Largest Group 1 | . . 1 1 Highest-Rated Group 31 | . . 31 31 Highest-Rated Ally 31 | . . 31 31 Total Orders . | . . . . Ally Attacks 24 | . . 7 17 Total Damage 398 | . . 86 312 Kills 9 | . . 1 8 Allies Corrupted . | . . . . Allies Melted . | . . . . Intel | -11 -10 -10 -9 ------- Run | Yrd Mat Min Mat Active Infowar (turns) . | . . . . Robot Analysis Total . | . . . . Derelict Logs Recovered 1 | . . 1 . Drone Launches . | . . . . Drone Recoveries . | . . . . Exploration | -11 -10 -10 -9 ------------- Run | Yrd Mat Min Mat Turns Passed 352 | 9 23 159 161 Spaces Moved 525 | 19 37 197 272 Core 427 | 19 37 197 174 Treads . | . . . . Legs . | . . . . Wheels . | . . . . Hover 98 | . . . 98 Flight . | . . . . Fastest Speed 50 | 50 50 50 50 Average Speed 51 | 50 50 50 53 Slowest Speed 60 | 50 50 50 60 Overloaded Moves . | . . . . Propulsion Burnouts . | . . . . Robots Hopped . | . . . . Potential Cave-ins . | . . . . Cave-ins Triggered . | . . . . Exploration Rate (%) 28 | 4 16 55 37 Regions Visited 3 Branch Regions 1 Pre-discovered Areas 1 | . . 1 . Known Exits Taken 2 | . 1 1 . Unknown Exits Taken 1 | 1 . . . Scrap Searched 2 | . . 2 . Spaces Dug . | . . . . Terrain Destroyed 1 | . . . 1 Melee . | . . . . Projectile 1 | . . . 1 AOE . | . . . . Terrain Rammed . | . . . . Walls Destroyed . | . . . . Machines Disabled . | . . . . Actions | -11 -10 -10 -9 --------- Run | Yrd Mat Min Mat Total 597 | 18 40 256 283 Wait 54 | . . 54 . Move 522 | 18 36 196 272 Hop . | . . . . Pick Up 4 | . 3 1 . Fast Attach 6 | . 1 1 4 Attach 2 | . . . 2 Detach 1 | . . 1 . Swap . | . . . . Drop . | . . . . Fire 1 | . . . 1 Melee . | . . . . Ram 7 | . . 3 4 Kick . | . . . . Crush . | . . . . Escape Stasis . | . . . . Rewire . | . . . . Trap . | . . . . Miscellaneous . | . . . . Route ------- -11/Scrapyard -10/Materials -10/Mines -9/Materials History --------- Turn | Location | Event 3 | -11/Scrapyard | Discovered new exit (range 16) 10 | -11/Scrapyard | Entered Materials 30 | -10/Materials | Discovered new exit (range 7) 33 | -10/Materials | Identified exit to Mines 33 | -10/Materials | Entered Mines 52 | -10/Mines | Met a Derelict bent on vengeance 52 | -10/Mines | Learned location of Zion (-7) 83 | -10/Mines | Core integrity fell below 50% 105 | -10/Mines | Received a Mining Laser from a helpful Derelict 118 | -10/Mines | YI-UF0 nonchalantly dropped a Grenade Launcher on the ground 134 | -10/Mines | Discovered new exit (range 9) 137 | -10/Mines | Identified exit to Materials 192 | -10/Mines | Entered Materials 192 | -9/Materials | Accompanied by 1 ally 192 | -9/Materials | Evolved 2 slots: Utility x2 266 | -9/Materials | Core integrity fell below 50% 306 | -9/Materials | Core integrity fell below 20% 330 | -9/Materials | Build established: Mutant 353 | -9/Materials | Destroyed by S-10 Pest with Light Assault Rifle Last Messages --------------- 00238_ Acquired Imp. Hover Unit. 00240_ K-01 Serf collects debris. 00252_ Imp. Hover Unit destroyed. 00260_ S-10 Pest destroyed. 00270_ U-05 Engineer works on Processing Tank. 00270_ K-01 Serf collects debris. 00272_ Critical hit (Burn: +37). 00276_ U-05 Engineer works on Processing Tank. 00276_ G-34 Mercenary destroyed. 00278_ K-01 Serf collects debris. 00294_ Acquired Salvage Targeting Computer. 00299_ Imp. Hover Unit destroyed. 00311_ Mining Laser destroyed. 00327_ Acquired 152 matter. 00334_ O-16 Technician: "IFF HANDSHAKE FAILED. SECURING TERMINAL." 00334_ W-16 Scout sends out distress signal. 00347_ ALERT: Hostiles spotted, dispatching reinforcements to Terminal M006. 00351_ Acquired Cryofiber Web. Map ----- +----------------------------------------------------+ | """"" """"" ###+#######?????????# ??##??????? | | """"" """"" #???????????????????# ??????????? | | """"" """"" #???????????????????# ??????????? | | """ """ #???????????????????# ??????????? | | #???????????????????# ??######### | | #???????????????????# ### % | | #???????????????????# # """ | | #???????????????????+ # """ | | ###### #???????????????????# # """ "" | | #????? #???????????????????# + """ | | ########????? ????????????????????# # """ S" | | ######??????? ?????????????????????# # """ """ | | #??????? ????????????????????# # """ """ | | #??????# #???????????????????# # | | #??????# #???????????????????# ######### | | """ #??????# #???????????????????# #???????? | | """ #??????+ #???????????????????# +???????? | | """ #??????# #???????????????????# #???????? | | ???????# #???????????????????# #???????? | | ##+#######??# #???????????????????# #???????? | | #??# #???????????????????# #???????? | | #??# #???????????????????# #???????? | | [ #??# #??########?????????# #???????? | | ######%* #??# #??#!!!!//#?????????/ #???????? | | ?????#= #??# #??#!!! //#?????????# #???????? | | ?????# #??# #??# @ #?????????# ######### | | ?????# #### #### ########### | | ?????# s | | ?????# gg s "" | | ?????# us "" | | ?????# %##########+######s################## "" | | ?????# *#?????????????? ????????????????? | | ?????# #????????????# """"?????????????????? | | ###### #????????????# """" ?????????????????? | | #????????????# """" ??????????????????? | | #????????????# ???????????????????[ | | #????????????#?"""" ???????????????????? | | +#########??????????????????? ???????????????????? | | ?????????????????????????????????????????????????? | | ?????????????????????????????????????????????????? | | ?????????????????????????????????????????????????? | | ?????????????????????????????????????????????????? | | ?????????????????????????????????????????????????? | | ?????????????????????????????????????????????????? | | ?????????????????????????????????????????????????? | | ?????????????????????????????????????????????????? | | ?????????????????????????????????????????????????? | | ?????????????????????????????????????????????????? | | ?????????????????????????????????????????????????? | | ?????????????????????????????????????????????????? | +----------------------------------------------------+ Best States ------------- Heat Dissipation 28 Energy Generation 5 Energy Capacity 100 Matter Stores 300 Matter Capacity 300 Sight Range 16 Terrain Scan Density 10 Propulsion Shielding 33 Evasion (%) 53 Salvage Targeting 1 Item Schematics ----------------- None Robot Schematics ------------------ None Fabricated ------------ Nothing Repaired ---------- Nothing Alien Tech Used ----------------- None Achievements -------------- None Challenges ------------ None Game ------ Seed PlasmaArmoredMantle Manual? 0 Play Time 00:04:35 Cumulative 26.6 hours Start 2025.10.11 @ 18:41:46 End 2025.10.11 @ 18:44:47 Sessions 1 Manual Loads 0 Difficulty Rogue Special Mode None Game No. 98 Rogue 98 Adventurer 0 Explorer 0 Win Type - Total 0 Types 0/0/0/0/0/0/0/0/0/0 Lore% 10 Gallery% 29 Achievement% 26 Wizard Run 0 Options --------- Layout 1 ASCII 0 Keyboard 1 Movement Vi Keybinds 0 Fullscreen 1 Font 16/SmallcapsGlow Map View 55x38 Zoom Use 0% Tactical HUD 1 Map Filters NONE Filters NONE Steam 1 RUN: 2cd4096d-adbc-4bfe-8d5c-233dbbaff253